[Event "Late-Titled-Tuesday-Blitz-February-27-2024"]
[Site "Chess.com"]
[Date "2024.02.27"]
[Round "9"]
[White "Tugrik1969"]
[Black "morte-negra"]
[Result "1-0"]
[WhiteElo "2390"]
[BlackElo "2058"]
[TimeControl "180+1"]
[EndTime "15:44:58 PST"]
[Termination "Tugrik1969 won by resignation"]

1. d4 {[%clk 0:03:00.9]} 1... Nf6 {[%clk 0:02:54.4]} 2. c4 {[%clk 0:02:57.6]}
2... g6 {[%clk 0:02:54.2]} 3. Nc3 {[%clk 0:02:49.4]} 3... Bg7 {[%clk 0:02:54.3]}
4. e4 {[%clk 0:02:35.4]} 4... d6 {[%clk 0:02:49.9]} 5. Nf3 {[%clk 0:02:35.2]}
5... O-O {[%clk 0:02:48.6]} 6. Be2 {[%clk 0:02:35.5]} 6... c5 {[%clk 0:02:48.1]}
7. d5 {[%clk 0:02:33.2]} 7... e6 {[%clk 0:02:47.2]} 8. O-O {[%clk 0:02:31.3]}
8... exd5 {[%clk 0:02:47.3]} 9. cxd5 {[%clk 0:02:31.1]} 9... a6 {[%clk
0:02:42.5]} 10. a4 {[%clk 0:02:30.5]} 10... Nbd7 {[%clk 0:02:36.1]} 11. h3
{[%clk 0:02:21.9]} 11... Re8 {[%clk 0:02:33.7]} 12. Bd3 {[%clk 0:02:21.9]} 12...
Qc7 {[%clk 0:02:21.6]} 13. Re1 {[%clk 0:02:21]} 13... Rb8 {[%clk 0:02:20.8]} 14.
a5 {[%clk 0:02:10.5]} 14... c4 {[%clk 0:02:18.8]} 15. Bf1 {[%clk 0:02:09.5]}
15... b5 {[%clk 0:02:18.4]} 16. axb6 {[%clk 0:02:07.8]} 16... Nxb6 {[%clk
0:02:16.4]} 17. Nd4 {[%clk 0:02:05.4]} 17... Nbd7 {[%clk 0:01:45.3]} 18. Nc6
{[%clk 0:01:59.2]} 18... Rb6 {[%clk 0:00:59.5]} 19. Bxc4 {[%clk 0:01:52.5]}
19... Bb7 {[%clk 0:00:56.9]} 20. Na5 {[%clk 0:01:09.3]} 20... Rb4 {[%clk
0:00:47.9]} 21. Bd3 {[%clk 0:00:55.9]} 21... Nc5 {[%clk 0:00:40.2]} 22. Nxb7
{[%clk 0:00:41.7]} 22... Qxb7 {[%clk 0:00:37.3]} 23. f3 {[%clk 0:00:34.7]} 23...
Rd4 {[%clk 0:00:34.2]} 24. Be3 {[%clk 0:00:17.4]} 24... Rxd3 {[%clk 0:00:31.6]}
25. Qe2 {[%clk 0:00:18]} 25... Nxd5 {[%clk 0:00:18.3]} 26. Nxd5 {[%clk
0:00:09.7]} 26... Qxd5 {[%clk 0:00:08.7]} 27. exd5 {[%clk 0:00:08.6]} 27...
Rdxe3 {[%clk 0:00:09.3]} 28. Qxe3 {[%clk 0:00:08.8]} 28... Bd4 {[%clk
0:00:09.8]} 29. Ra3 {[%clk 0:00:06.6]} 29... Bxe3+ {[%clk 0:00:07.6]} 30. Raxe3
{[%clk 0:00:06]} 30... Rb8 {[%clk 0:00:08.2]} 31. Re8+ {[%clk 0:00:05.6]} 31...
Rxe8 {[%clk 0:00:08.3]} 32. Rxe8+ {[%clk 0:00:06]} 32... Kg7 {[%clk 0:00:09.1]}
33. Rd8 {[%clk 0:00:06.2]} 33... Na4 {[%clk 0:00:08.5]} 34. b3 {[%clk
0:00:05.5]} 34... Nc3 {[%clk 0:00:08.3]} 35. Rxd6 {[%clk 0:00:04.7]} 35... a5
{[%clk 0:00:07.7]} 36. Ra6 {[%clk 0:00:04]} 36... Nxd5 {[%clk 0:00:07.4]} 37.
Rxa5 {[%clk 0:00:04.6]} 37... Nc3 {[%clk 0:00:07.6]} 38. b4 {[%clk 0:00:04.2]}
38... Kf6 {[%clk 0:00:07.8]} 39. b5 {[%clk 0:00:04.4]} 39... Ke7 {[%clk
0:00:08]} 40. b6 {[%clk 0:00:04.7]} 40... Kd6 {[%clk 0:00:08.1]} 41. Ra7 {[%clk
0:00:05.3]} 41... Kc6 {[%clk 0:00:07.3]} 42. Rxf7 {[%clk 0:00:05.1]} 42... h5
{[%clk 0:00:07.7]} 43. Rf6+ {[%clk 0:00:05.3]} 43... Kb7 {[%clk 0:00:07.7]} 44.
Rxg6 {[%clk 0:00:06.2]} 44... Ne2+ {[%clk 0:00:06.6]} 45. Kf2 {[%clk 0:00:04.7]}
45... Nf4 {[%clk 0:00:06.5]} 46. Rh6 {[%clk 0:00:04.6]} 46... Nd3+ {[%clk
0:00:03.7]} 47. Kg3 {[%clk 0:00:04.2]} 47... Nc5 {[%clk 0:00:02.9]} 48. Kh4
{[%clk 0:00:03.5]} 48... Nd7 {[%clk 0:00:02.9]} 49. Rh7 {[%clk 0:00:02.7]} 49...
Kc6 {[%clk 0:00:01.6]} 50. Rxd7 {[%clk 0:00:03.6]} 50... Kxd7 {[%clk 0:00:01.9]}
51. Kxh5 {[%clk 0:00:04.1]} 51... Kc6 {[%clk 0:00:02.6]} 52. g4 {[%clk
0:00:04.7]} 52... Kxb6 {[%clk 0:00:03.3]} 53. g5 {[%clk 0:00:05.6]} 53... Kc6
{[%clk 0:00:03.7]} 54. g6 {[%clk 0:00:06.5]} 54... Kd6 {[%clk 0:00:04.3]} 55. g7
{[%clk 0:00:07.4]} 55... Ke6 {[%clk 0:00:05]} 56. g8=Q+ {[%clk 0:00:08.2]} 56...
Ke7 {[%clk 0:00:05.3]} 57. Qg6 {[%clk 0:00:08.4]} 57... Kf8 {[%clk 0:00:04.8]}
58. Kg5 {[%clk 0:00:09.3]} 1-0

[Event "Late-Titled-Tuesday-Blitz-February-27-2024"]
[Site "Chess.com"]
[Date "2024.02.27"]
[Round "9"]
[White "Fonsofan"]
[Black "Fh2411"]
[Result "0-1"]
[WhiteElo "2748"]
[BlackElo "2637"]
[TimeControl "180+1"]
[EndTime "15:45:02 PST"]
[Termination "Fh2411 won on time"]

1. b4 {[%clk 0:02:57.5]} 1... d5 {[%clk 0:02:55.4]} 2. Bb2 {[%clk 0:02:55.3]}
2... Bf5 {[%clk 0:02:55.4]} 3. e3 {[%clk 0:02:55.4]} 3... e6 {[%clk 0:02:55.6]}
4. Nf3 {[%clk 0:02:56]} 4... Nf6 {[%clk 0:02:54.3]} 5. b5 {[%clk 0:02:55.8]}
5... Be7 {[%clk 0:02:52.2]} 6. c4 {[%clk 0:02:55.1]} 6... O-O {[%clk 0:02:45.4]}
7. Be2 {[%clk 0:02:42]} 7... Nbd7 {[%clk 0:02:41.1]} 8. Nh4 {[%clk 0:02:39.2]}
8... Bg6 {[%clk 0:01:53.5]} 9. Nxg6 {[%clk 0:02:38]} 9... hxg6 {[%clk
0:01:54.4]} 10. O-O {[%clk 0:02:35.7]} 10... Nc5 {[%clk 0:01:45.7]} 11. d4
{[%clk 0:02:30.9]} 11... Nce4 {[%clk 0:01:43.4]} 12. a4 {[%clk 0:02:30.9]} 12...
c5 {[%clk 0:01:29.1]} 13. bxc6 {[%clk 0:02:28.2]} 13... bxc6 {[%clk 0:01:28.9]}
14. c5 {[%clk 0:02:21.9]} 14... a5 {[%clk 0:01:22.2]} 15. f3 {[%clk 0:02:17.9]}
15... Ng5 {[%clk 0:01:21.9]} 16. Bc3 {[%clk 0:02:18]} 16... Qb8 {[%clk
0:01:04.7]} 17. Nd2 {[%clk 0:02:16.1]} 17... Bd8 {[%clk 0:01:04.4]} 18. Rb1
{[%clk 0:02:15.6]} 18... Qa7 {[%clk 0:01:01.6]} 19. Rb2 {[%clk 0:01:58.6]} 19...
Bc7 {[%clk 0:01:01.1]} 20. Qc2 {[%clk 0:01:56.6]} 20... Rfb8 {[%clk 0:01:01.2]}
21. Rfb1 {[%clk 0:01:57.1]} 21... Nd7 {[%clk 0:00:53.1]} 22. Rxb8+ {[%clk
0:01:51.9]} 22... Rxb8 {[%clk 0:00:42.3]} 23. Rxb8+ {[%clk 0:01:51.1]} 23...
Qxb8 {[%clk 0:00:42.6]} 24. Nb3 {[%clk 0:01:51.2]} 24... Bxh2+ {[%clk
0:00:41.8]} 25. Kf1 {[%clk 0:01:48.7]} 25... e5 {[%clk 0:00:34.1]} 26. Nxa5
{[%clk 0:01:46.7]} 26... Qc7 {[%clk 0:00:28.1]} 27. Qb2 {[%clk 0:01:41.1]} 27...
exd4 {[%clk 0:00:27.1]} 28. exd4 {[%clk 0:01:42]} 28... Nf6 {[%clk 0:00:20.3]}
29. Bd2 {[%clk 0:01:33.5]} 29... Ne6 {[%clk 0:00:20.1]} 30. Qb7 {[%clk
0:01:24.6]} 30... Nxd4 {[%clk 0:00:19.2]} 31. Qxc7 {[%clk 0:01:02.8]} 31... Bxc7
{[%clk 0:00:20.1]} 32. Nb7 {[%clk 0:01:01.6]} 32... Nd7 {[%clk 0:00:20.6]} 33.
a5 {[%clk 0:00:56.8]} 33... Nxe2 {[%clk 0:00:20.5]} 34. Kxe2 {[%clk 0:00:51]}
34... Nb8 {[%clk 0:00:20.1]} 35. Kd3 {[%clk 0:00:28.1]} 35... Kf8 {[%clk
0:00:19.8]} 36. Nd6 {[%clk 0:00:23.4]} 36... Bxd6 {[%clk 0:00:19.4]} 37. cxd6
{[%clk 0:00:24.3]} 37... Ke8 {[%clk 0:00:19]} 38. Bf4 {[%clk 0:00:16.7]} 38...
Na6 {[%clk 0:00:19.5]} 39. g4 {[%clk 0:00:15.4]} 39... Kd7 {[%clk 0:00:20.4]}
40. Kd4 {[%clk 0:00:14.9]} 40... Ke6 {[%clk 0:00:20.7]} 41. Bg3 {[%clk
0:00:14.5]} 41... c5+ {[%clk 0:00:20.3]} 42. Kd3 {[%clk 0:00:15]} 42... Kd7
{[%clk 0:00:20.8]} 43. Bh2 {[%clk 0:00:14.6]} 43... Kc6 {[%clk 0:00:21.2]} 44.
Bg3 {[%clk 0:00:14.4]} 44... Nb8 {[%clk 0:00:19.2]} 45. g5 {[%clk 0:00:10.6]}
45... f6 {[%clk 0:00:17.4]} 46. f4 {[%clk 0:00:08.7]} 46... Kb5 {[%clk
0:00:17.1]} 47. gxf6 {[%clk 0:00:08.4]} 47... gxf6 {[%clk 0:00:17]} 48. Bf2
{[%clk 0:00:09.2]} 48... Nd7 {[%clk 0:00:16.3]} 49. Be1 {[%clk 0:00:08.8]} 49...
Nb8 {[%clk 0:00:14.9]} 50. Bf2 {[%clk 0:00:08.4]} 50... Kc6 {[%clk 0:00:14.3]}
51. Bg3 {[%clk 0:00:07.8]} 51... f5 {[%clk 0:00:13.3]} 52. Bh4 {[%clk
0:00:05.9]} 52... Kxd6 {[%clk 0:00:13.1]} 53. Bd8 {[%clk 0:00:06.6]} 53... Kc6
{[%clk 0:00:13.5]} 54. Bb6 {[%clk 0:00:06.3]} 54... Na6 {[%clk 0:00:14.1]} 55.
Kc3 {[%clk 0:00:06]} 55... Kb5 {[%clk 0:00:14.6]} 56. Bd8 {[%clk 0:00:06.2]}
56... Nb4 {[%clk 0:00:13.3]} 57. Kb3 {[%clk 0:00:03.6]} 57... d4 {[%clk
0:00:12.1]} 58. Be7 {[%clk 0:00:03.3]} 58... c4+ {[%clk 0:00:12.7]} 59. Kb2
{[%clk 0:00:03.8]} 59... Nc6 {[%clk 0:00:12.5]} 60. Bd6 {[%clk 0:00:03]} 60...
Kxa5 {[%clk 0:00:12.6]} 0-1

[Event "Late-Titled-Tuesday-Blitz-February-27-2024"]
[Site "Chess.com"]
[Date "2024.02.27"]
[Round "9"]
[White "PepeCuenca"]
[Black "el008"]
[Result "1/2-1/2"]
[WhiteElo "2691"]
[BlackElo "2512"]
[TimeControl "180+1"]
[EndTime "15:45:14 PST"]
[Termination "Game drawn - insufficient material"]

1. d4 {[%clk 0:03:00.9]} 1... e6 {[%clk 0:03:00.9]} 2. c4 {[%clk 0:03:01]} 2...
c5 {[%clk 0:02:58.3]} 3. d5 {[%clk 0:03:01]} 3... exd5 {[%clk 0:02:59]} 4. cxd5
{[%clk 0:03:01.9]} 4... d6 {[%clk 0:02:59.6]} 5. Nc3 {[%clk 0:03:02.2]} 5... Nf6
{[%clk 0:02:59.3]} 6. Nf3 {[%clk 0:03:01.4]} 6... g6 {[%clk 0:02:59]} 7. Bf4
{[%clk 0:03:01.7]} 7... Bg7 {[%clk 0:02:59.9]} 8. Qa4+ {[%clk 0:03:01.1]} 8...
Bd7 {[%clk 0:02:54]} 9. Qb3 {[%clk 0:03:00.1]} 9... Qc7 {[%clk 0:02:50.3]} 10.
e4 {[%clk 0:02:58.9]} 10... O-O {[%clk 0:02:47.9]} 11. Nd2 {[%clk 0:02:59]}
11... Nh5 {[%clk 0:02:41.8]} 12. Be3 {[%clk 0:02:58.1]} 12... a6 {[%clk
0:02:38.7]} 13. a4 {[%clk 0:02:53.5]} 13... f5 {[%clk 0:02:34.1]} 14. exf5
{[%clk 0:02:51.8]} 14... gxf5 {[%clk 0:02:29.7]} 15. Be2 {[%clk 0:02:45.7]}
15... f4 {[%clk 0:02:29]} 16. Bxc5 {[%clk 0:02:40.4]} 16... Qxc5 {[%clk
0:01:41.4]} 17. Bxh5 {[%clk 0:02:06.7]} 17... Bf5 {[%clk 0:01:31]} 18. O-O
{[%clk 0:01:49.7]} 18... Nd7 {[%clk 0:01:31.5]} 19. Nde4 {[%clk 0:01:45.8]}
19... Qc7 {[%clk 0:01:20.7]} 20. Rac1 {[%clk 0:01:17.2]} 20... Qb8 {[%clk
0:01:20.6]} 21. Qb4 {[%clk 0:01:11.3]} 21... Be5 {[%clk 0:01:20]} 22. h3 {[%clk
0:00:59.7]} 22... Nf6 {[%clk 0:01:14.5]} 23. Nxf6+ {[%clk 0:00:57.9]} 23... Rxf6
{[%clk 0:01:15.4]} 24. Bg4 {[%clk 0:00:51.9]} 24... Bxg4 {[%clk 0:01:06.1]} 25.
hxg4 {[%clk 0:00:51.9]} 25... Rg6 {[%clk 0:01:06.8]} 26. Ne4 {[%clk 0:00:26.7]}
26... Kh8 {[%clk 0:01:02.5]} 27. g5 {[%clk 0:00:25.6]} 27... f3 {[%clk
0:00:58.4]} 28. g3 {[%clk 0:00:20.7]} 28... b6 {[%clk 0:00:33.3]} 29. Qb3 {[%clk
0:00:19.6]} 29... Qf8 {[%clk 0:00:32.6]} 30. Nd2 {[%clk 0:00:15.2]} 30... Rxg5
{[%clk 0:00:30.1]} 31. Nxf3 {[%clk 0:00:14.8]} 31... Rh5 {[%clk 0:00:22.4]} 32.
Nxe5 {[%clk 0:00:15.2]} 32... dxe5 {[%clk 0:00:22.7]} 33. Kg2 {[%clk 0:00:13.2]}
33... Qf6 {[%clk 0:00:19.1]} 34. Qe3 {[%clk 0:00:10.8]} 34... Rf8 {[%clk
0:00:15.1]} 35. Rh1 {[%clk 0:00:08.8]} 35... Rf5 {[%clk 0:00:15.6]} 36. Rcf1
{[%clk 0:00:08.8]} 36... Rf3 {[%clk 0:00:15.7]} 37. Qe2 {[%clk 0:00:07.1]} 37...
e4 {[%clk 0:00:15.8]} 38. Qd2 {[%clk 0:00:03.1]} 38... e3 {[%clk 0:00:11.7]} 39.
Qc3 {[%clk 0:00:03.6]} 39... Qxc3 {[%clk 0:00:07.4]} 40. bxc3 {[%clk 0:00:03.5]}
40... e2 {[%clk 0:00:04.6]} 41. Re1 {[%clk 0:00:03.3]} 41... Rxf2+ {[%clk
0:00:05.3]} 42. Kh3 {[%clk 0:00:03.9]} 42... b5 {[%clk 0:00:03.8]} 43. axb5
{[%clk 0:00:03.7]} 43... axb5 {[%clk 0:00:04.7]} 44. Rh2 {[%clk 0:00:03.7]}
44... Rxh2+ {[%clk 0:00:03.1]} 45. Kxh2 {[%clk 0:00:04.3]} 45... Rd8 {[%clk
0:00:02.6]} 46. Rxe2 {[%clk 0:00:04.4]} 46... Rxd5 {[%clk 0:00:03.3]} 47. Re3
{[%clk 0:00:04.5]} 47... Rc5 {[%clk 0:00:03.1]} 48. Kg2 {[%clk 0:00:04.7]} 48...
Kg7 {[%clk 0:00:03.8]} 49. Kf3 {[%clk 0:00:05.2]} 49... Kf6 {[%clk 0:00:04.6]}
50. Rd3 {[%clk 0:00:03.7]} 50... h5 {[%clk 0:00:04.6]} 51. Kf4 {[%clk
0:00:03.4]} 51... Rc4+ {[%clk 0:00:04.8]} 52. Kf3 {[%clk 0:00:04]} 52... Rc5
{[%clk 0:00:04.7]} 53. Kf4 {[%clk 0:00:04.2]} 53... Rf5+ {[%clk 0:00:04.1]} 54.
Ke4 {[%clk 0:00:04.4]} 54... Kg5 {[%clk 0:00:03.8]} 55. Kd4 {[%clk 0:00:03.6]}
55... Kg4 {[%clk 0:00:03.8]} 56. Re3 {[%clk 0:00:03.6]} 56... Rf3 {[%clk
0:00:02.9]} 57. Re5 {[%clk 0:00:03.1]} 57... Rxg3 {[%clk 0:00:02.3]} 58. Rxb5
{[%clk 0:00:03.5]} 58... h4 {[%clk 0:00:02.9]} 59. Rb8 {[%clk 0:00:03.8]} 59...
Kh3 {[%clk 0:00:02.7]} 60. Rh8 {[%clk 0:00:03.7]} 60... Rg4+ {[%clk 0:00:03.2]}
61. Kd5 {[%clk 0:00:03.9]} 61... Kg2 {[%clk 0:00:03.9]} 62. c4 {[%clk
0:00:04.1]} 62... h3 {[%clk 0:00:03.5]} 63. c5 {[%clk 0:00:04.7]} 63... h2
{[%clk 0:00:03.1]} 64. c6 {[%clk 0:00:04.2]} 64... Kg3 {[%clk 0:00:02.2]} 65.
Rxh2 {[%clk 0:00:03.7]} 65... Kxh2 {[%clk 0:00:02.3]} 66. c7 {[%clk 0:00:04.3]}
66... Rg8 {[%clk 0:00:02.2]} 67. Kd6 {[%clk 0:00:04.9]} 67... Kg3 {[%clk
0:00:02.7]} 68. Kd7 {[%clk 0:00:05.4]} 68... Kf4 {[%clk 0:00:03.3]} 69. c8=Q
{[%clk 0:00:05.9]} 69... Rxc8 {[%clk 0:00:04]} 70. Kxc8 {[%clk 0:00:06.7]}
1/2-1/2

[Event "Late-Titled-Tuesday-Blitz-February-27-2024"]
[Site "Chess.com"]
[Date "2024.02.27"]
[Round "9"]
[White "Abund"]
[Black "Rawnsdale"]
[Result "1-0"]
[WhiteElo "2735"]
[BlackElo "2508"]
[TimeControl "180+1"]
[EndTime "15:45:19 PST"]
[Termination "Abund won by checkmate"]

1. e4 {[%clk 0:03:00.9]} 1... c6 {[%clk 0:02:59.7]} 2. d4 {[%clk 0:03:00.6]}
2... d5 {[%clk 0:03:00]} 3. exd5 {[%clk 0:03:01.5]} 3... cxd5 {[%clk 0:03:00.7]}
4. Bd3 {[%clk 0:03:02.2]} 4... Nc6 {[%clk 0:03:01.3]} 5. c3 {[%clk 0:03:02.4]}
5... Nf6 {[%clk 0:03:01.2]} 6. h3 {[%clk 0:03:02.8]} 6... g6 {[%clk 0:03:01.6]}
7. Nf3 {[%clk 0:03:02.7]} 7... Bg7 {[%clk 0:03:02]} 8. O-O {[%clk 0:03:03.5]}
8... O-O {[%clk 0:03:02.2]} 9. Re1 {[%clk 0:03:04.2]} 9... Re8 {[%clk
0:02:56.5]} 10. Bf4 {[%clk 0:03:03.9]} 10... Nh5 {[%clk 0:02:55.9]} 11. Bh2
{[%clk 0:03:01.8]} 11... Bh6 {[%clk 0:02:56.1]} 12. Nbd2 {[%clk 0:02:58.4]}
12... Nf4 {[%clk 0:02:54.6]} 13. Bf1 {[%clk 0:02:56]} 13... f6 {[%clk
0:02:53.4]} 14. c4 {[%clk 0:02:40.6]} 14... dxc4 {[%clk 0:02:09.9]} 15. Bxc4+
{[%clk 0:02:36.7]} 15... Kg7 {[%clk 0:02:06.5]} 16. Ne4 {[%clk 0:02:32]} 16...
Bf5 {[%clk 0:01:58.4]} 17. Nc5 {[%clk 0:02:26.3]} 17... b6 {[%clk 0:01:53.6]}
18. Bxf4 {[%clk 0:02:19.9]} 18... Bxf4 {[%clk 0:01:49]} 19. Ne6+ {[%clk
0:02:19.1]} 19... Bxe6 {[%clk 0:01:48.7]} 20. Rxe6 {[%clk 0:02:03]} 20... Na5
{[%clk 0:01:37.1]} 21. Bb5 {[%clk 0:02:02.5]} 21... Rf8 {[%clk 0:01:35.1]} 22.
Qe2 {[%clk 0:02:00.2]} 22... Bd6 {[%clk 0:01:34.8]} 23. Ba6 {[%clk 0:01:50]}
23... Rb8 {[%clk 0:01:30.2]} 24. Rc1 {[%clk 0:01:47.7]} 24... b5 {[%clk
0:01:28.2]} 25. Bxb5 {[%clk 0:01:38.2]} 25... Qb6 {[%clk 0:01:27.9]} 26. a4
{[%clk 0:01:35]} 26... Nb3 {[%clk 0:01:17.8]} 27. Rd1 {[%clk 0:01:15.6]} 27...
Rbc8 {[%clk 0:01:10]} 28. h4 {[%clk 0:00:55.1]} 28... Rc1 {[%clk 0:00:56.9]} 29.
Rxc1 {[%clk 0:00:50.8]} 29... Nxc1 {[%clk 0:00:57.8]} 30. Qc4 {[%clk 0:00:50.3]}
30... a6 {[%clk 0:00:47.1]} 31. Bxa6 {[%clk 0:00:37.6]} 31... Qxb2 {[%clk
0:00:47.1]} 32. Re1 {[%clk 0:00:26.3]} 32... Nb3 {[%clk 0:00:36.9]} 33. Qd3
{[%clk 0:00:26.2]} 33... Na5 {[%clk 0:00:25]} 34. Bb5 {[%clk 0:00:23.1]} 34...
Rc8 {[%clk 0:00:20.3]} 35. h5 {[%clk 0:00:20.7]} 35... Rc1 {[%clk 0:00:19.9]}
36. Qe3 {[%clk 0:00:19.5]} 36... Rxe1+ {[%clk 0:00:19.2]} 37. Qxe1 {[%clk
0:00:19.7]} 37... Nb3 {[%clk 0:00:18.2]} 38. hxg6 {[%clk 0:00:10.6]} 38... hxg6
{[%clk 0:00:19.1]} 39. d5 {[%clk 0:00:10.1]} 39... Nd4 {[%clk 0:00:18.5]} 40.
Nxd4 {[%clk 0:00:08.1]} 40... Qxd4 {[%clk 0:00:19.4]} 41. Kf1 {[%clk 0:00:06.7]}
41... Qxd5 {[%clk 0:00:18.8]} 42. g3 {[%clk 0:00:04]} 42... Bc5 {[%clk
0:00:14.5]} 43. Kg1 {[%clk 0:00:03.3]} 43... Qd6 {[%clk 0:00:13.6]} 44. Kg2
{[%clk 0:00:03.4]} 44... Qd5+ {[%clk 0:00:13.6]} 45. Kf1 {[%clk 0:00:03.7]}
45... Qd4 {[%clk 0:00:12.5]} 46. Kg2 {[%clk 0:00:03.8]} 46... Bb4 {[%clk
0:00:11.6]} 47. Qe2 {[%clk 0:00:03.6]} 47... Qd5+ {[%clk 0:00:12]} 48. Qf3
{[%clk 0:00:03.7]} 48... Qd6 {[%clk 0:00:12.6]} 49. Qe4 {[%clk 0:00:04]} 49...
Bc5 {[%clk 0:00:12.2]} 50. Bd3 {[%clk 0:00:04.1]} 50... f5 {[%clk 0:00:12.8]}
51. Qf3 {[%clk 0:00:03.9]} 51... Kf6 {[%clk 0:00:13.2]} 52. Bc4 {[%clk
0:00:03.9]} 52... Qd4 {[%clk 0:00:11.8]} 53. Bb5 {[%clk 0:00:03.7]} 53... e5
{[%clk 0:00:11.3]} 54. Qc6+ {[%clk 0:00:03.9]} 54... Kg5 {[%clk 0:00:11.7]} 55.
Qf3 {[%clk 0:00:03.9]} 55... e4 {[%clk 0:00:11.4]} 56. Qf4+ {[%clk 0:00:04.4]}
56... Kf6 {[%clk 0:00:11.4]} 57. g4 {[%clk 0:00:02.6]} 57... Bd6 {[%clk
0:00:09.3]} 58. Qe3 {[%clk 0:00:02.8]} 58... Qe5 {[%clk 0:00:07.6]} 59. gxf5
{[%clk 0:00:03.3]} 59... Qh2+ {[%clk 0:00:05.4]} 60. Kf1 {[%clk 0:00:03.5]}
60... Qh1+ {[%clk 0:00:02.6]} 61. Ke2 {[%clk 0:00:03.5]} 61... gxf5 {[%clk
0:00:02.7]} 62. Qd4+ {[%clk 0:00:03.9]} 62... Be5 {[%clk 0:00:02.7]} 63. Qd8+
{[%clk 0:00:04.3]} 63... Kg6 {[%clk 0:00:02.8]} 64. Be8+ {[%clk 0:00:04.3]}
64... Kh6 {[%clk 0:00:01.7]} 65. Qb6+ {[%clk 0:00:02.3]} 65... Kg5 {[%clk
0:00:02.2]} 66. Qg6+ {[%clk 0:00:02.6]} 66... Kf4 {[%clk 0:00:01.8]} 67. Qg3#
{[%clk 0:00:03]} 1-0

[Event "Late-Titled-Tuesday-Blitz-February-27-2024"]
[Site "Chess.com"]
[Date "2024.02.27"]
[Round "9"]
[White "GiorgianBarbosa"]
[Black "Schattman"]
[Result "1-0"]
[WhiteElo "2524"]
[BlackElo "2414"]
[TimeControl "180+1"]
[EndTime "15:45:33 PST"]
[Termination "GiorgianBarbosa won on time"]

1. d4 {[%clk 0:02:12.5]} 1... Nf6 {[%clk 0:02:59.4]} 2. c4 {[%clk 0:02:13.4]}
2... g6 {[%clk 0:02:59]} 3. Nf3 {[%clk 0:02:13.1]} 3... Bg7 {[%clk 0:02:58.7]}
4. g3 {[%clk 0:02:14]} 4... c6 {[%clk 0:02:58.3]} 5. Bg2 {[%clk 0:02:14.9]} 5...
d5 {[%clk 0:02:58.6]} 6. O-O {[%clk 0:02:15.8]} 6... O-O {[%clk 0:02:58.5]} 7.
cxd5 {[%clk 0:02:15.5]} 7... cxd5 {[%clk 0:02:58.4]} 8. Nc3 {[%clk 0:02:16.4]}
8... Ne4 {[%clk 0:02:57.9]} 9. Bf4 {[%clk 0:02:16.2]} 9... Nc6 {[%clk
0:02:56.5]} 10. Ne5 {[%clk 0:02:15.3]} 10... Nxc3 {[%clk 0:02:53]} 11. bxc3
{[%clk 0:02:15.3]} 11... Nxe5 {[%clk 0:02:52.5]} 12. dxe5 {[%clk 0:02:14.8]}
12... Be6 {[%clk 0:02:43.9]} 13. Qd2 {[%clk 0:02:14.2]} 13... Qc7 {[%clk
0:02:41.2]} 14. Rfd1 {[%clk 0:02:09.1]} 14... Bxe5 {[%clk 0:02:37]} 15. Bxd5
{[%clk 0:02:04.3]} 15... Bxf4 {[%clk 0:02:29]} 16. Qxf4 {[%clk 0:02:02]} 16...
Qxf4 {[%clk 0:02:25.4]} 17. gxf4 {[%clk 0:02:02.9]} 17... Bxd5 {[%clk
0:02:16.8]} 18. Rxd5 {[%clk 0:02:03.8]} 18... Rac8 {[%clk 0:02:11]} 19. Rd7
{[%clk 0:02:02.8]} 19... Rxc3 {[%clk 0:01:55]} 20. Rxb7 {[%clk 0:02:02.1]} 20...
a5 {[%clk 0:01:37.4]} 21. Rxe7 {[%clk 0:01:57.4]} 21... Rc2 {[%clk 0:01:31.4]}
22. e3 {[%clk 0:01:56.8]} 22... Rd8 {[%clk 0:01:28.4]} 23. a4 {[%clk 0:01:44.4]}
23... Rdd2 {[%clk 0:01:26.9]} 24. Rf1 {[%clk 0:01:43]} 24... Ra2 {[%clk
0:01:26.7]} 25. Re4 {[%clk 0:01:42.8]} 25... Rdb2 {[%clk 0:01:23.6]} 26. Rd4
{[%clk 0:01:34.4]} 26... Rb4 {[%clk 0:01:17.6]} 27. Rxb4 {[%clk 0:01:33.6]}
27... axb4 {[%clk 0:01:17.9]} 28. Rb1 {[%clk 0:01:32.4]} 28... Rxa4 {[%clk
0:01:17.9]} 29. Kg2 {[%clk 0:01:32.9]} 29... f5 {[%clk 0:01:16.8]} 30. Rc1
{[%clk 0:01:30.4]} 30... Ra8 {[%clk 0:01:11.2]} 31. Kf1 {[%clk 0:01:25.7]} 31...
b3 {[%clk 0:01:05.8]} 32. Rb1 {[%clk 0:01:22.3]} 32... Rb8 {[%clk 0:01:03.1]}
33. Ke2 {[%clk 0:01:22.6]} 33... Kf7 {[%clk 0:01:03.5]} 34. Kd3 {[%clk
0:01:22.9]} 34... Ke6 {[%clk 0:01:03.8]} 35. Kc3 {[%clk 0:01:23.3]} 35... Kd5
{[%clk 0:01:03.4]} 36. f3 {[%clk 0:01:19.4]} 36... Re8 {[%clk 0:00:54.7]} 37.
Kd3 {[%clk 0:01:14.9]} 37... Rb8 {[%clk 0:00:48.4]} 38. e4+ {[%clk 0:01:08.4]}
38... fxe4+ {[%clk 0:00:42.7]} 39. fxe4+ {[%clk 0:01:09.3]} 39... Ke6 {[%clk
0:00:41.8]} 40. Kc3 {[%clk 0:01:06.7]} 40... Rf8 {[%clk 0:00:38.8]} 41. Rf1
{[%clk 0:00:55.8]} 41... Rb8 {[%clk 0:00:37.6]} 42. Rf2 {[%clk 0:00:55.8]} 42...
Rb7 {[%clk 0:00:31.6]} 43. Rb2 {[%clk 0:00:50.7]} 43... Rf7 {[%clk 0:00:30.9]}
44. Rf2 {[%clk 0:00:50.3]} 44... Rb7 {[%clk 0:00:30.7]} 45. Rb2 {[%clk
0:00:38.9]} 45... Rf7 {[%clk 0:00:29.9]} 46. Rxb3 {[%clk 0:00:37.4]} 46... Rxf4
{[%clk 0:00:29.6]} 47. Kd4 {[%clk 0:00:38.3]} 47... Rh4 {[%clk 0:00:25.1]} 48.
h3 {[%clk 0:00:38]} 48... Kf6 {[%clk 0:00:19.9]} 49. Kd5 {[%clk 0:00:36.2]}
49... Rf4 {[%clk 0:00:16.5]} 50. e5+ {[%clk 0:00:34.1]} 50... Kg5 {[%clk
0:00:13]} 51. Re3 {[%clk 0:00:27.8]} 51... Rf8 {[%clk 0:00:09.5]} 52. e6 {[%clk
0:00:27.8]} 52... Kf4 {[%clk 0:00:09.9]} 53. Re1 {[%clk 0:00:23.9]} 53... Rd8+
{[%clk 0:00:09.3]} 54. Kc6 {[%clk 0:00:22.7]} 54... Kg3 {[%clk 0:00:09.2]} 55.
e7 {[%clk 0:00:22]} 55... Re8 {[%clk 0:00:09.3]} 56. Kd7 {[%clk 0:00:20.7]}
56... Ra8 {[%clk 0:00:07.3]} 57. Re3+ {[%clk 0:00:17.9]} 57... Kf4 {[%clk
0:00:07]} 58. e8=Q {[%clk 0:00:18.3]} 58... Rxe8 {[%clk 0:00:06]} 59. Rxe8
{[%clk 0:00:18.3]} 59... h5 {[%clk 0:00:03.9]} 60. Ke6 {[%clk 0:00:17.1]} 60...
g5 {[%clk 0:00:04]} 61. Kd5 {[%clk 0:00:14.3]} 61... g4 {[%clk 0:00:03.9]} 62.
hxg4 {[%clk 0:00:13.5]} 62... hxg4 {[%clk 0:00:04.3]} 63. Kd4 {[%clk 0:00:14]}
63... Kf3 {[%clk 0:00:04.1]} 64. Kd3 {[%clk 0:00:13.3]} 64... Kf2 {[%clk
0:00:02.4]} 65. Kd2 {[%clk 0:00:13.2]} 65... g3 {[%clk 0:00:02.3]} 66. Rf8+
{[%clk 0:00:13.7]} 66... Kg1 {[%clk 0:00:02.6]} 67. Ke2 {[%clk 0:00:13.4]} 67...
g2 {[%clk 0:00:03]} 68. Rg8 {[%clk 0:00:12.4]} 68... Kh1 {[%clk 0:00:02.9]} 69.
Kf2 {[%clk 0:00:03.5]} 69... g1=Q+ {[%clk 0:00:03.1]} 70. Rxg1+ {[%clk
0:00:03.5]} 70... Kh2 {[%clk 0:00:03.5]} 71. Rg3 {[%clk 0:00:03.2]} 1-0